Cogmind - Beta 13 @@@ ROGUE MODE // 2024.04.14 @ 10:54:11 Player: HoneyComb Result: Destroyed by G-47 Trooper with Particle Gun Performance ------------- Evolutions (2) 1000 Regions Visited (4) 800 Robots Destroyed (9) 45 Value Destroyed (151) 151 Prototype IDs (0) 0 Alien Tech Used (0) 0 Bonus (7) 7 TOTAL SCORE: 2003 Bonus ------- Follower Combat Kills 7 Cogmind --------- Core Integrity 0/550 Matter 300/300 Energy 100/100 System Corruption 3% Temperature Cool (18) Movement Core (50) Location -8/Materials Parts ------- > --- POWER (2) -------- (None) > --- PROPULSION (4) --- (None) > --- UTILITY (3) ------ (None) > --- WEAPON (2) ------- (None) > --- INVENTORY (5) ---- (None) Peak State ------------ > --- POWER ------------ Light Nuclear Core > --- PROPULSION ------- Flight Unit Flight Unit > --- UTILITY ---------- (None) > --- WEAPON ----------- (None) > --- INVENTORY -------- (None) [Rating: 5] Favorites ----------- Power Ion Engine Engine Ion Engine Power Core Light Nuclear Core Propulsion Flight Unit Wheel Wheel Flight Unit Flight Unit Utility None Weapon Small Laser Energy Gun Small Laser Ballistic Gun Light Assault Rifle Build | -11 -10 -10 -9 -8 ------- Run | Yrd Mat Min Mat Mat Slots Evolved 4 | . . . 2 2 Power 1 | . . . 1 . Propulsion 2 | . . . 1 1 Utility 1 | . . . . 1 Weapon . | . . . . . Parts Attached 9 | 4 3 1 . 1 Power 2 | 1 . 1 . . Engine 1 | 1 . . . . Core 1 | . . 1 . . Reactor . | . . . . . Propulsion 4 | 2 2 . . . Treads . | . . . . . Leg . | . . . . . Wheel 2 | 2 . . . . Hover . | . . . . . Flight 2 | . 2 . . . Utility . | . . . . . Device . | . . . . . Storage . | . . . . . Processor . | . . . . . Hackware . | . . . . . Protection . | . . . . . Artifact . | . . . . . Weapon 3 | 1 1 . . 1 Energy Gun 1 | 1 . . . . Energy Cannon . | . . . . . Ballistic Gun 2 | . 1 . . 1 Ballistic Cannon . | . . . . . Launcher . | . . . . . Special Weapon . | . . . . . Impact Weapon . | . . . . . Slashing Weapon . | . . . . . Piercing Weapon . | . . . . . Special Melee Weapon . | . . . . . Unidentified Prototypes . | . . . . . Parts Lost 8 | . 4 2 1 1 Power 2 | . 1 1 . . Propulsion 4 | . 2 1 1 . Utility . | . . . . . Weapon 2 | . 1 . . 1 Highest Loss Streak 4 | . 4 2 1 1 To Critical Strikes . | . . . . . Average Slot Usage (%) 27 | . 47 31 7 3 Engine 2 | . 8 . . . Wheel 5 | . 16 . . . Flight 10 | . 8 24 7 . Energy Gun 3 | . 8 . . . Ballistic Gun 3 | . 5 5 . 3 Naked Turns 101 | . . . 32 69 Heaviest Build 6 | 6 6 5 . 3 Greatest Support 26 | 26 26 8 4 3 Greatest Overweight (x) . | . . . . . Average Overweight (x) . | . . . . . Largest Inventory Capacity 5 | 5 5 5 5 5 Average Capacity 5 | 5 5 5 5 5 Most Carried 2 | 2 2 . . 1 Average Carried . | . . . . . Final Capacity 5 | 5 5 5 5 5 Final Carried . | . . . . . Class Distribution -------------------- 100% | Mutant Dominant Class ---------------- Mutant | -10/Materials Mutant | -10/Mines Mutant | -9/Materials Mutant | -8/Materials Resources | -11 -10 -10 -9 -8 ----------- Run | Yrd Mat Min Mat Mat Matter Collected 301 | 221 46 14 . 20 Remotely . | . . . . . Salvage Created 192 | . 161 . . 31 Parts 12 | . 7 . . 5 Haulers Intercepted . | . . . . . Recyclers Shooed . | . . . . . Parts Field Recycled . | . . . . . Retrieved Matter . | . . . . . Parts Self-Destructed . | . . . . . Prevented . | . . . . . Kills | -11 -10 -10 -9 -8 ------- Run | Yrd Mat Min Mat Mat Combat Hostiles Destroyed 9 | . 7 . . 2 Melee 1 | . . . . 1 Guns 8 | . 7 . . 1 Classes Destroyed 2 | . 2 . . . Swarmer 7 | . 5 . . 2 Grunt 2 | . 2 . . . Best Kill Streak 5 | . 5 . . 2 Combat Bots Only 5 | . 5 . . 2 Max Kills in Single Turn 1 | . 1 . . 1 Gunslinging . | . . . . . Exploded . | . . . . . Melee 1 | . . . . 1 Uniques/NPCs Destroyed . | . . . . . Combat | -11 -10 -10 -9 -8 -------- Run | Yrd Mat Min Mat Mat Hostile Shots Fired 187 | . 59 31 27 70 Missed 78 | . 20 21 12 25 Damage Taken 1490 | . 424 147 223 696 Core 994 | . 168 70 197 559 Absorbed by Shields . | . . . . . Core Remaining (%) 51 | 100 . 4 50 . Volleys Fired 55 | . 46 . . 9 Largest 1 | . 1 . . 1 Hottest 40 | . 40 . . 25 Shots Fired 55 | . 46 . . 9 Gun 55 | . 46 . . 9 Cannon . | . . . . . Launcher . | . . . . . Special . | . . . . . Kinetic 30 | . 21 . . 9 Thermal 25 | . 25 . . . Explosive . | . . . . . Electromagnetic . | . . . . . Robot Hit Streak 16 | . 16 . . 3 Robot Miss Streak 3 | . 3 . . 3 Penetration Max . | . . . . . Secondary Targets . | . . . . . Shots Hit Robots 37 | . 32 . . 5 Core Hits 27 | . 14 . 1 12 Critical Kills . | . . . . . Critical Parts Destroyed . | . . . . . Critical Strikes . | . . . . . Melee Attacks . | . . . . . Impact . | . . . . . Slashing . | . . . . . Piercing . | . . . . . Sneak Attacks . | . . . . . Combat Hostiles . | . . . . . Follow-up Attacks . | . . . . . Damage Inflicted 477 | . 311 . 14 152 Guns 395 | . 311 . . 84 Cannons . | . . . . . Explosions . | . . . . . Melee . | . . . . . Ramming 82 | . . . 14 68 Kinetic 195 | . 111 . . 84 Thermal 200 | . 200 . . . Explosive . | . . . . . Electromagnetic . | . . . . . Impact . | . . . . . Slashing . | . . . . . Piercing . | . . . . . Highest Corruption 3 | . . . . 3 Average Corruption 1 | . . . . 1 Corruption Purged . | . . . . . Corruption Blocked . | . . . . . Overload Shots . | . . . . . Overflow Damage . | . . . . . Projectiles . | . . . . . Explosions . | . . . . . Melee . | . . . . . Knockbacks . | . . . . . Impact . | . . . . . Kinetic . | . . . . . Secondary . | . . . . . Self-Inflicted Damage 35 | . . . 6 29 Shots . | . . . . . Rammed 23 | . . . 2 21 Targets Rammed 23 | . . . 2 21 Kicked . | . . . . . Crushed . | . . . . . Highest Temperature 43 | . 43 6 . 14 Average Temperature 21 | . 23 6 . 6 Received Heat Transfer 524 | . 147 20 105 252 Siege Activations . | . . . . . Robots Corrupted . | . . . . . Combat Hostiles . | . . . . . Parts Fried . | . . . . . Impact Corruptions . | . . . . . Robots Melted . | . . . . . Combat Hostiles . | . . . . . Parts Melted 1 | . 1 . . . Heat Transferred 450 | . 450 . . . Parts Sabotaged . | . . . . . Parts Stolen . | . . . . . Parts Stripped . | . . . . . Power Chain Reactions . | . . . . . Alert | -11 -10 -10 -9 -8 ------- Run | Yrd Mat Min Mat Mat Peak Influence 190 | . 190 108 67 84 Initial 73 | . . 73 22 24 Average 60 | . 89 60 42 54 Maximum Alert Level . | . . . . . Low Security (%) 100 | 100 100 100 100 100 Level 1 . | . . . . . Level 2 . | . . . . . Level 3 . | . . . . . Level 4 . | . . . . . Level 5 . | . . . . . High Security . | . . . . . Max Security . | . . . . . Squads Dispatched 2 | . 1 . . 1 Investigation . | . . . . . Extermination . | . . . . . Reinforcement 2 | . 1 . . 1 Assault . | . . . . . Garrison . | . . . . . Intercept . | . . . . . Searches Triggered . | . . . . . Construction Impeded . | . . . . . Haulers Reinforced . | . . . . . Active Scanning Responses . | . . . . . Cargo Convoy Interrupts . | . . . . . Stealth | -11 -10 -10 -9 -8 --------- Run | Yrd Mat Min Mat Mat Distress Signals 3 | . 2 . . 1 Communications Jammed . | . . . . . Distress Signals . | . . . . . Times Spotted 53 | . 15 19 8 11 Peak Tracking Total 14 | . 10 14 6 10 Tactical Retreats 5 | . 2 2 1 . Traps | -11 -10 -10 -9 -8 ------- Run | Yrd Mat Min Mat Mat Traps Triggered . | . . . . . Indirectly . | . . . . . Trap Hack Attempts . | . . . . . Triggered . | . . . . . Disarmed . | . . . . . Reprogrammed . | . . . . . Reused . | . . . . . Traps Extracted . | . . . . . Installed . | . . . . . Triggered . | . . . . . Machines | -11 -10 -10 -9 -8 ---------- Run | Yrd Mat Min Mat Mat Machines Disabled . | . . . . . Max in Single Turn . | . . . . . Machines Repaired . | . . . . . Machines Dismantled . | . . . . . Machines Sabotaged . | . . . . . Overloaded Fab Kills . | . . . . . Hacking | -11 -10 -10 -9 -8 --------- Run | Yrd Mat Min Mat Mat Machines Accessed 1 | . 1 . . . Terminals 1 | . 1 . . . Fabricators . | . . . . . Repair Stations . | . . . . . Recycling Units . | . . . . . Scanalyzers . | . . . . . Garrison Access . | . . . . . Total Hacks 1 | . 1 . . . Successful . | . . . . . Failed 1 | . 1 . . . Catastrophic . | . . . . . Database Lockouts . | . . . . . Manual 1 | . 1 . . . Terminals 1 | . 1 . . . Fabricators . | . . . . . Repair Stations . | . . . . . Recycling Units . | . . . . . Scanalyzers . | . . . . . Garrison Access . | . . . . . Terminal Hacks . | . . . . . Fabricator Hacks . | . . . . . Repair Station Hacks . | . . . . . Recycling Unit Hacks . | . . . . . Scanalyzer . | . . . . . Garrison Access Hacks . | . . . . . Unauthorized Hacks . | . . . . . Terminals . | . . . . . Fabricators . | . . . . . Repair Stations . | . . . . . Recycling Units . | . . . . . Scanalyzers . | . . . . . Garrison Access . | . . . . . Data Cores Recovered . | . . . . . Used . | . . . . . Hacking Detections . | . . . . . Full Trace Events . | . . . . . Feedback Events . | . . . . . Feedback Blocked . | . . . . . Robot Schematics Acquired . | . . . . . Robots Built . | . . . . . Authchips . | . . . . . Time . | . . . . . Total Robot Build Rating . | . . . . . Part Schematics Acquired . | . . . . . Parts Built . | . . . . . Authchips . | . . . . . Time . | . . . . . Total Part Build Rating . | . . . . . Parts Repaired . | . . . . . Time . | . . . . . Parts Recycled . | . . . . . Recycled Matter . | . . . . . Retrieved Matter . | . . . . . Retrieved Components . | . . . . . Parts Scanalyzed . | . . . . . Part Schematics Acquired . | . . . . . Parts Damaged . | . . . . . Bothacking | -11 -10 -10 -9 -8 ------------ Run | Yrd Mat Min Mat Mat Used RIF Installer . | . . . . . Robots Hacked . | . . . . . Non-combat . | . . . . . Combat . | . . . . . Robot Hacks Applied . | . . . . . Relay Couplers Released . | . . . . . Fabnet Peak Effective % . | . . . . . Robots Rewired . | . . . . . Allies Hacked . | . . . . . Hacks Repelled . | . . . . . Allies | -11 -10 -10 -9 -8 -------- Run | Yrd Mat Min Mat Mat Total Allies 3 | . . 3 . . Largest Group 3 | . . 3 . . Highest-Rated Group 40 | . . 40 . . Highest-Rated Ally 16 | . . 16 . . Total Orders 7 | . . 7 . . GUARD 7 | . . 7 . . Ally Attacks 11 | . . 11 . . Total Damage 81 | . . 81 . . Kills 1 | . . 1 . . Allies Corrupted . | . . . . . Allies Melted . | . . . . . Intel | -11 -10 -10 -9 -8 ------- Run | Yrd Mat Min Mat Mat Robot Analysis Total . | . . . . . Derelict Logs Recovered . | . . . . . Drone Launches . | . . . . . Drone Recoveries . | . . . . . Exploration | -11 -10 -10 -9 -8 ------------- Run | Yrd Mat Min Mat Mat Turns Passed 658 | 52 210 158 129 109 Spaces Moved 839 | 52 183 242 225 137 Core 208 | 10 2 . 59 137 Treads . | . . . . . Legs . | . . . . . Wheels 134 | 42 92 . . . Hover . | . . . . . Flight 497 | . 89 242 166 . Fastest Speed 37 | 50 37 37 40 50 Average Speed 49 | 82 63 38 42 50 Slowest Speed 90 | 90 90 40 50 50 Overloaded Moves . | . . . . . Propulsion Burnouts . | . . . . . Robots Hopped 13 | . 1 11 1 . Cave-ins Triggered . | . . . . . Exploration Rate (%) 22 | 4 33 46 18 11 Regions Visited 4 Branch Regions 1 Pre-discovered Areas . | . . . . . Known Exits Taken . | . . . . . Unknown Exits Taken 4 | 1 1 1 1 . Scrap Searched . | . . . . . Spaces Dug . | . . . . . Terrain Destroyed . | . . . . . Melee . | . . . . . Projectile . | . . . . . AOE . | . . . . . Terrain Rammed . | . . . . . Walls Destroyed . | . . . . . Machines Disabled . | . . . . . Actions | -11 -10 -10 -9 -8 --------- Run | Yrd Mat Min Mat Mat Total 1015 | 60 232 296 256 171 Wait 97 | . . 64 31 2 Move 812 | 51 180 222 222 137 Hop 10 | . 1 8 1 . Pick Up 6 | 3 2 . . 1 Fast Attach 5 | 3 1 1 . . Attach 4 | 1 2 . . 1 Detach . | . . . . . Swap . | . . . . . Drop 3 | 2 . 1 . . Fire 55 | . 46 . . 9 Melee . | . . . . . Ram 23 | . . . 2 21 Kick . | . . . . . Crush . | . . . . . Escape Stasis . | . . . . . Rewire . | . . . . . Trap . | . . . . . Miscellaneous . | . . . . . Route ------- -11/Scrapyard -10/Materials -10/Mines (discovered 2 exits: *Mat x2) -9/Materials -8/Materials History --------- Turn | Location | Event 22 | -11/Scrapyard | Discovered new exit (range 16) 53 | -11/Scrapyard | Entered Materials 199 | -10/Materials | Core integrity fell below 50% 223 | -10/Materials | Lost 4 parts (1p2n1w) 261 | -10/Materials | Discovered new exit (range 6) 263 | -10/Materials | Entered Mines 275 | -10/Mines | Assembled infested the area 289 | -10/Mines | Assisted by bots powering up and referring to "LRC-V3" 301 | -10/Mines | Build established: Mutant 340 | -10/Mines | Lost 3 allies 386 | -10/Mines | Core integrity fell below 20% 416 | -10/Mines | Discovered new exit (range 11) 421 | -10/Mines | Discovered new exit (range 9) 421 | -10/Mines | Entered Materials 421 | -9/Materials | Evolved 2 slots: Power x1, Propulsion x1 546 | -9/Materials | Discovered new exit (range 5) 550 | -9/Materials | Entered another Materials area 550 | -8/Materials | Evolved 2 slots: Propulsion x1, Utility x1 652 | -8/Materials | Core integrity fell below 50% 657 | -8/Materials | Core integrity fell below 20% 659 | -8/Materials | Destroyed by G-47 Trooper with Particle Gun Last Messages --------------- Slammed into S-10 Pest. S-10 Pest destroyed. Acquired 20 matter. Slammed into B-36 Bruiser. Knocked back. Slammed into B-36 Bruiser. Destabilizing: System corrupted (+1). Knocked back. Slammed into B-36 Bruiser. Critical hit (Burn: +37). Slammed into B-36 Bruiser. Destabilizing: Core damaged (-27). Slammed into B-36 Bruiser. Slammed into G-47 Trooper. Destabilizing: System corrupted (+1). Knocked back. Slammed into G-47 Trooper. Destabilizing: System corrupted (+1). Material Processor disabled. Slammed into G-47 Trooper. Map ----- +----------------------------------------------------+ | ?????????????????????????????????????????????????? | | ?????????????????????????????????????????????????? | | ?????????????????????????????????????????????????? | | ?????????????????????????????????????????????????? | | ?????????????????????????????????????????????????? | | ?????????????????????????????????????????????????? | | ?????????????????????????????????????????????????? | | ???????????????????????????????[/ ???????????????? | | ???????????????????????????????!/ ???????????????? | | ??????????????????????????????? ???????????????? | | ?????????????????????????????? ????????????????? | | ?????????????????????????????? ????? ?????????? | | ?????????????????????????????? """?? ????????? | | ????????????????????????????? """ ????????? | | ????????????????????????????? """ ????????? | | ????????????????????????????? """ ???????? | | ????????????? ############ *[ ???????? | | ???????????? [[ ??????? | | ???????????? ??????? | | ???????????? ??????? | | ???????????????????########+########?????????????? | | ??????????????????????# %[ !#????????????????? | | ??????????????????????# """ #????????????????? | | ??????????????????????# """"" #????????????????? | | ??????????????????????#=g""""" #????????????????? | | ??????????????????????#gg@"""" #????????????????? | | ??????????????????????#*%g""" #????????????????? | | ??????????????????????#[=% gu #????????????????? | | ??????????????????????#%%%% #????????????????? | | ?????????????#############b######????????????????? | | ?????????????# #???# #?????????????????????? | | ?????????????#""" #???# #?????????????????????? | | ?????????????#""" #???# #?????????????????????? | | ?????????????#""" #???# #?????????????????????? | | ?????????????# #???# #?????????????????????? | | ?????????????####+######## #?????????????????????? | | ????????????????# #?????????????????????? | | ????????????????# ##########?????????????????????? | | ????????????????# #??????????????????????????????? | | ????????????????# #??????????????????????????????? | | ????????????????# #??????????????????????????????? | | ????????????????# #??????????????????????????????? | | ????????????????# #??????????????????????????????? | | ???????????##+### #????????###########???????????? | | ??????###### ## ########## #???????????? | | % + " #???????????? | | ??????###### ############# """ T #???????????? | | ???????????## ##???????????# """ " #???????????? | | ????????????# ?????????????# """ #???????????? | | ????????????# ?????????????# #???????????? | +----------------------------------------------------+ Best States ------------- Heat Dissipation 31 Energy Generation 14 Energy Capacity 250 Matter Stores 300 Matter Capacity 300 Sight Range 16 Terrain Scan Density 10 Evasion (%) 62 Item Schematics ----------------- None Robot Schematics ------------------ None Fabricated ------------ Nothing Alien Tech Used ----------------- None Achievements -------------- Close Call Cya! I Survived The Infestation Challenges ------------ None Game ------ Seed RocketAssaultChip Manual? 0 Play Time 00:16:52 Cumulative 3.8 hours Start 2024.04.14 @ 10:37:45 End 2024.04.14 @ 10:54:11 Sessions 1 Manual Loads 0 Difficulty Rogue Special Mode None Game No. 13 Rogue 8 Adventurer 5 Explorer 0 Win Type - Total 0 Types 0/0/0/0/0/0/0/0/0 Lore% 1 Gallery% 6 Achievement% 7 Wizard Run 0 Options --------- Layout 1 ASCII 0 Keyboard 0 Movement Numpad Keybinds 0 Fullscreen 1 Font 24/Smallcaps Map View 50x35 Zoom Use 0% Tactical HUD 0 Map Filters NONE Filters NONE Steam 1 RUN: 0f1ce54e-5b42-4857-b4c6-8c5b0f27b637